fUST/lending_fUST_20250913
["ID","MTS","AMOUNT","RATE_DAILY","PERIOD"]
[385318892,1757772649403,-151.0,0.00024657,7]
[385318893,1757772649413,-224.507931,0.00024657,7]
[385318894,1757772649423,-151.0,0.00024657,7]
[385318895,1757772649433,-151.0,0.00024657,7]
[385318896,1757772649443,-224.507931,0.00024657,7]
[385318897,1757772649452,-151.0,0.00024657,7]
[385318898,1757772649461,-224.507931,0.00024657,7]
[385318899,1757772649471,-480.0,0.00024657,3]
[385318900,1757772649480,-224.507931,0.00024657,7]
[385318901,1757772649490,-151.0,0.00024657,7]
[385318902,1757772649499,-224.507931,0.00024657,7]
[385318904,1757772649509,-151.0,0.00024657,7]
[385318905,1757772649518,-480.0,0.00024657,3]
[385318906,1757772649528,-224.507931,0.00024657,7]
[385318907,1757772649537,-216.784387,0.00024657,7]
[385318909,1757772649547,-224.507931,0.00024657,7]
[385318911,1757772649557,-224.507931,0.00024657,7]
[385318913,1757772649567,-224.507924,0.00024657,7]
[385318915,1757772649576,-480.0,0.00024657,3]
[385318917,1757772649588,-480.0,0.00024657,3]
[385318919,1757772649603,-11213.25,0.00024657,3]
[385318921,1757772649613,-480.0,0.00024657,3]
[385318923,1757772649622,-480.0,0.00024657,3]
[385318925,1757772649633,-480.0,0.00024657,3]
[385318927,1757772649642,-484.21622238,0.00024657,3]
[385318929,1757772649651,-480.0,0.00024657,3]
[385318931,1757772649660,-151.0,0.00024657,7]
[385318933,1757772649670,-151.0,0.00024657,7]
[385318935,1757772649679,-151.0,0.00024657,7]
[385318937,1757772649688,-151.0,0.00024657,7]
[385318938,1757772649698,-2143.2,0.00024657,3]
[385318940,1757772649707,-151.0,0.00024657,7]
[385318941,1757772649716,-151.0,0.00024657,7]
[385318942,1757772649725,-481.26544125,0.00024657,3]
[385318943,1757772649735,-886.26,0.00024657,3]
[385318944,1757772649744,-480.0,0.00024657,3]
[385318945,1757772649753,-151.0,0.00024657,7]
[385318946,1757772649763,-151.0,0.00024657,7]
[385318948,1757772649772,-480.0,0.00024657,3]
[385318949,1757772649782,-192.24476,0.00024657,7]
[385318950,1757772649791,-480.0,0.00024657,3]
[385318951,1757772649801,-285.38335036,0.00024657,3]
[385318953,1757772649812,-250.979388,0.00024657,7]
[385318954,1757772649823,-250.979388,0.00024657,7]
[385318955,1757772649832,-250.979388,0.00024657,7]
[385318956,1757772649842,-250.979388,0.00024657,7]
[385318957,1757772649852,-480.0,0.00024657,3]
[385318958,1757772649862,-250.979388,0.00024657,7]
[385318959,1757772649874,-250.979388,0.00024657,7]
[385318960,1757772649885,-250.979388,0.00024657,7]
[385318962,1757772649895,-531.13137412,0.00024657,3]
[385318963,1757772649905,-250.979388,0.00024657,7]
[385318964,1757772649915,-531.13137412,0.00024657,7]
[385318965,1757772649924,-250.979388,0.00024657,7]
[385318966,1757772649934,-250.979388,0.00024657,7]
[385318967,1757772649943,-250.979388,0.00024657,7]
[385318968,1757772649955,-480.0,0.00024657,3]
[385318969,1757772649965,-250.979388,0.00024657,7]
[385318970,1757772649975,-250.979388,0.00024657,7]
[385318971,1757772649986,-250.979388,0.00024657,7]
[385318973,1757772649996,-250.979388,0.00024657,7]
[385318974,1757772650005,-250.979395,0.00024657,7]
[385318975,1757772650016,-808.42,0.00024657,3]
[385318976,1757772650025,-600.34,0.00024657,3]
[385318977,1757772650035,-480.0,0.00024657,3]
[385318978,1757772650045,-151.0,0.00024657,7]
[385318979,1757772650055,-151.0,0.00024657,7]
[385318981,1757772650064,-1512.47,0.00024657,3]
[385318982,1757772650074,-480.0,0.00024657,3]
[385318983,1757772650083,-481.718405,0.00024657,3]
[385318984,1757772650093,-480.0,0.00024657,3]
[385318985,1757772650102,-151.0,0.00024657,7]
[385318986,1757772650111,-168.0,0.00024657,7]
[385318987,1757772650121,-729.19,0.00024657,3]
[385318988,1757772650131,-480.0,0.00024657,3]
[385318989,1757772650141,-480.0,0.00024657,3]
[385318990,1757772650152,-283.65925695,0.00024657,3]
[385318992,1757772650162,-480.0,0.00024657,3]
[385318993,1757772650172,-480.0,0.00024657,3]
[385318994,1757772650181,-151.0,0.00024657,7]
[385318995,1757772650191,-151.0,0.00024657,7]
[385318996,1757772650202,-151.0,0.00024657,7]
[385318997,1757772650211,-151.0,0.00024657,7]
[385318999,1757772650221,-151.0,0.00024657,7]
[385319000,1757772650231,-480.0,0.00024657,3]
[385319001,1757772650240,-503.07,0.00024657,3]
[385319002,1757772650250,-282.996272,0.00024657,7]
[385319003,1757772650260,-480.0,0.00024657,3]
[385319004,1757772650269,-480.0,0.00024657,3]
[385319005,1757772650279,-480.0,0.00024657,3]
[385319006,1757772650288,-1757.83,0.00024657,3]
[385319007,1757772650298,-480.0,0.00024657,3]
[385319008,1757772650307,-4516.03,0.00024657,3]
[385319009,1757772650317,-4516.03,0.00024657,3]
[385319010,1757772650327,-4516.03,0.00024657,3]
[385319011,1757772650336,-4516.03,0.00024657,3]
[385319012,1757772650346,-480.0,0.00024657,3]
[385319013,1757772650356,-797.3,0.00024657,3]
[385319014,1757772650366,-4516.03,0.00024657,3]
[385319015,1757772650375,-4516.03,0.00024657,3]
[385319016,1757772650386,-735.55,0.00024657,3]
[385319017,1757772650396,-4516.03,0.00024657,3]
[385319018,1757772650406,-4516.03,0.00024657,3]
[385319019,1757772650416,-4516.03,0.00024657,3]
[385319020,1757772650425,-4516.03,0.00024657,3]
[385319021,1757772650435,-482.52302134,0.00024657,3]
[385319022,1757772650444,-4516.03,0.00024657,3]
[385319023,1757772650454,-4516.03,0.00024657,3]
[385319024,1757772650464,-4516.03,0.00024657,3]
[385319025,1757772650473,-480.0,0.00024657,3]
[385319026,1757772650482,-4516.03,0.00024657,3]
[385319027,1757772650492,-4516.03,0.00024657,3]
[385319028,1757772650501,-4516.03,0.00024657,3]
[385319029,1757772650511,-4516.03,0.00024657,3]
[385319030,1757772650520,-4516.03,0.00024657,3]
[385319031,1757772650529,-4516.03,0.00024657,3]
[385319032,1757772650539,-4516.03,0.00024657,3]
[385319033,1757772650548,-4516.03,0.00024657,3]
[385319034,1757772650557,-4516.03,0.00024657,3]
[385319035,1757772650567,-4516.03,0.00024657,3]
[385319036,1757772650576,-4516.13177714,0.00024657,3]
[385319037,1757772650586,-480.0,0.00024657,3]
[385319038,1757772650595,-480.0,0.00024657,3]
[385319039,1757772650604,-480.0,0.00024657,3]
[385319040,1757772650613,-480.0,0.00024657,3]
[385319041,1757772650622,-484.19757796,0.00024657,3]
[385319042,1757772650632,-648.69,0.00024657,3]
[385319043,1757772650642,-1620.71,0.00024657,3]
[385319044,1757772650651,-480.0,0.00024657,3]
[385319045,1757772650661,-489.99968106,0.00024657,3]
[385319046,1757772650671,-880.28,0.00024657,3]
[385319047,1757772650681,-480.0,0.00024657,3]
[385319048,1757772650690,-1045.65,0.00024657,3]
[385319049,1757772650699,-480.0,0.00024657,3]
[385319050,1757772650711,-480.0,0.00024657,3]
[385319051,1757772650721,-480.0,0.00024657,3]
[385319052,1757772650730,-480.0,0.00024657,3]
[385319053,1757772650740,-481.05446585,0.00024657,3]
[385319054,1757772650749,-480.0,0.00024657,3]
[385319055,1757772650759,-714.06,0.00024657,3]
[385319056,1757772650769,-480.0,0.00024657,3]
[385319057,1757772650778,-625.77,0.00024657,3]
[385319058,1757772650788,-490.96319546,0.00024657,3]
[385319059,1757772650797,-480.8555341,0.00024657,3]
[385319060,1757772650807,-485.75184867,0.00024657,3]
[385319061,1757772650816,-8505.93,0.00024657,3]
[385319062,1757772650825,-480.0,0.00024657,3]
[385319063,1757772650835,-645.28,0.00024657,3]
[385319064,1757772650845,-480.0,0.00024657,3]
[385319065,1757772650854,-2218.69,0.00024657,3]
[385319066,1757772650865,-480.0,0.00024657,3]
[385319067,1757772650875,-480.0,0.00024657,3]
[385319068,1757772650885,-480.0,0.00024657,3]
[385319069,1757772650895,-480.0,0.00024657,3]
[385319070,1757772650904,-482.12818552,0.00024657,3]
[385319071,1757772650914,-603.77,0.00024657,3]
[385319072,1757772650923,-480.0,0.00024657,3]
[385319073,1757772650933,-480.0,0.00024657,3]
[385319074,1757772650942,-480.0,0.00024657,3]
[385319075,1757772650952,-480.0,0.00024657,3]
[385319076,1757772650962,-480.0,0.00024657,3]
[385319077,1757772650971,-151.0,0.00024657,7]
[385319078,1757772650982,-151.0,0.00024657,7]
[385319079,1757772650991,-480.0,0.00024657,3]
[385319080,1757772651001,-480.0,0.00024657,3]
[385319081,1757772651010,-503.25,0.00024657,3]
[385319082,1757772651021,-154.293526,0.00024657,7]
[385319083,1757772651030,-154.293526,0.00024657,7]
[385319084,1757772651040,-154.293526,0.00024657,7]
[385319085,1757772651050,-480.0,0.00024657,3]
[385319086,1757772651060,-154.293526,0.00024657,7]
[385319087,1757772651070,-1058.0,0.00024657,3]
[385319088,1757772651079,-154.293526,0.00024657,7]
[385319089,1757772651089,-154.293526,0.00024657,7]
[385319090,1757772651099,-154.293526,0.00024657,7]
[385319091,1757772651109,-839.61,0.00024657,3]
[385319092,1757772651119,-154.293526,0.00024657,7]
[385319093,1757772651129,-1058.0,0.00024657,3]
[385319094,1757772651139,-154.293526,0.00024657,7]
[385319095,1757772651149,-480.0,0.00024657,3]
[385319096,1757772651158,-154.293526,0.00024657,7]
[385319097,1757772651168,-480.0,0.00024657,3]
[385319098,1757772651178,-154.293526,0.00024657,7]
[385319099,1757772651187,-154.293526,0.00024657,7]
[385319100,1757772651197,-154.293526,0.00024657,7]
[385319101,1757772651206,-480.0,0.00024657,3]
[385319102,1757772651215,-154.293526,0.00024657,7]
[385319103,1757772651227,-154.293526,0.00024657,7]
[385319104,1757772651239,-480.0,0.00024657,3]
[385319105,1757772651248,-154.293528,0.00024657,7]
[385319106,1757772651257,-480.0,0.00024657,3]
[385319107,1757772651267,-480.0,0.00024657,3]
[385319108,1757772651276,-480.0,0.00024657,3]
[385319109,1757772651285,-480.0,0.00024657,3]
[385319110,1757772651294,-480.0,0.00024657,3]
[385319111,1757772651303,-480.0,0.00024657,3]
[385319112,1757772651312,-151.0,0.00024657,7]
[385319113,1757772651322,-202.262395,0.00024657,7]
[385319114,1757772651331,-480.0,0.00024657,3]
[385319115,1757772651341,-2006.74,0.00024657,3]
[385319116,1757772651350,-480.0,0.00024657,3]
[385319117,1757772651360,-480.0,0.00024657,3]
[385319118,1757772651369,-229.909804,0.00024657,7]
[385319119,1757772651379,-480.0,0.00024657,3]
[385319120,1757772651389,-229.909804,0.00024657,7]
[385319121,1757772651399,-480.0,0.00024657,3]
[385319122,1757772651409,-229.909804,0.00024657,7]
[385319123,1757772651418,-229.909804,0.00024657,7]
[385319124,1757772651427,-229.909804,0.00024657,7]
[385319125,1757772651437,-229.909804,0.00024657,7]
[385319126,1757772651446,-229.909804,0.00024657,7]
[385319127,1757772651456,-229.909804,0.00024657,7]
[385319128,1757772651465,-151.0,0.00024657,7]
[385319129,1757772651475,-151.0,0.00024657,7]
[385319130,1757772651485,-229.909804,0.00024657,7]
[385319131,1757772651494,-229.909804,0.00024657,7]
[385319132,1757772651503,-296.433916,0.00024657,7]
[385319133,1757772651512,-229.909804,0.00024657,7]
[385319134,1757772651522,-229.909804,0.00024657,7]
[385319135,1757772651535,-480.0,0.00024657,3]
[385319136,1757772651544,-1488.92,0.00024657,3]
[385319137,1757772651554,-1118.02,0.00024657,3]
[385319138,1757772651564,-229.909804,0.00024657,7]
[385319139,1757772651573,-1118.02,0.00024657,3]
[385319140,1757772651583,-480.0,0.00024657,3]
[385319141,1757772651593,-1118.02,0.00024657,3]
[385319142,1757772651602,-229.909804,0.00024657,7]
[385319143,1757772651614,-1118.02,0.00024657,3]
[385319144,1757772651623,-229.909804,0.00024657,7]
[385319145,1757772651633,-1118.02,0.00024657,3]
[385319146,1757772651642,-229.909812,0.00024657,7]
[385319147,1757772651651,-1118.02,0.00024657,3]
[385319148,1757772651661,-1118.02,0.00024657,3]
[385319149,1757772651671,-1118.02,0.00024657,3]
[385319150,1757772651680,-480.0,0.00024657,3]
[385319151,1757772651689,-1118.02,0.00024657,3]
[385319152,1757772651699,-1118.02,0.00024657,3]
[385319153,1757772651708,-1118.02,0.00024657,3]
[385319154,1757772651717,-1118.02,0.00024657,3]
[385319155,1757772651765,-1118.02,0.00024657,3]
[385319156,1757772651774,-480.0,0.00024657,3]
[385319157,1757772651784,-1118.02,0.00024657,3]
[385319158,1757772651794,-1118.02,0.00024657,3]
[385319159,1757772651803,-1118.02,0.00024657,3]
[385319160,1757772651813,-1118.02,0.00024657,3]
[385319161,1757772651822,-1118.02,0.00024657,3]
[385319162,1757772651832,-1118.02,0.00024657,3]
[385319163,1757772651841,-1118.02,0.00024657,3]
[385319164,1757772651851,-1118.02,0.00024657,3]
[385319165,1757772651860,-1118.02,0.00024657,3]
[385319166,1757772651875,-480.0,0.00024657,3]
[385319167,1757772651886,-1118.02,0.00024657,3]
[385319168,1757772651896,-1118.05930527,0.00024657,3]
[385319169,1757772651906,-157.0,0.00024658,2]
[385319170,1757772651917,-500.0,0.00024658,2]
[385319171,1757772651926,-500.85652594,0.00024673,2]
[385319172,1757772651935,-500.0,0.00024673,2]
[385319173,1757772651945,-500.0,0.00024673,2]
[385319174,1757772651954,-500.32767685,0.00024673,2]
[385319175,1757772651963,-500.0,0.00024673,2]
[385319176,1757772651972,-511.86442703,0.00024673,2]
[385319177,1757772651981,-500.0,0.00024673,2]
[385319178,1757772651990,-500.0,0.00024673,2]
[385319179,1757772652000,-500.0,0.00024673,2]
[385319180,1757772652009,-500.0,0.00024673,2]
[385319181,1757772652019,-504.56323117,0.00024673,2]
[385319182,1757772652028,-503.27858316,0.00024673,2]
[385319183,1757772652038,-198.30363012,0.00024673,2]
[385319184,1757772652047,-500.60975126,0.00024673,2]
[385319185,1757772652057,-500.0,0.00024673,2]
[385319186,1757772652067,-500.0,0.00024673,2]
[385319187,1757772652076,-500.0,0.00024673,2]
[385319188,1757772652086,-500.0,0.00024673,2]
[385319189,1757772652095,-500.0,0.00024673,2]
[385319190,1757772652105,-590.45919396,0.00024673,2]
[385319191,1757772652114,-500.0,0.00024673,2]
[385319192,1757772652123,-425.66528365,0.00024673,2]
[385319193,1757772652133,-500.0,0.00024673,2]
[385319194,1757772652142,-500.0,0.00024673,2]
[385319195,1757772652151,-263.13513426,0.00024673,2]
[385319196,1757772652161,-500.0,0.00024673,2]
[385319197,1757772652170,-500.4457902,0.00024673,2]
[385319198,1757772652179,-500.0,0.00024673,2]
[385319199,1757772652188,-500.72958271,0.00024673,2]
[385319200,1757772652198,-500.0,0.00024673,2]
[385319201,1757772652207,-500.94915532,0.00024673,2]
[385319202,1757772652217,-387.04781104,0.00024673,2]
[385319203,1757772652226,-298.49901242,0.00024673,2]
[385319204,1757772652235,-500.0,0.00024673,2]
[385319205,1757772652245,-500.0,0.00024673,2]
[385319206,1757772652255,-500.0,0.00024673,2]
[385319207,1757772652264,-500.0,0.00024673,2]
[385319208,1757772652273,-500.0,0.00024673,2]
[385319209,1757772652282,-500.0,0.00024673,2]
[385319210,1757772652292,-504.06962117,0.00024673,2]
[385319211,1757772652302,-500.0,0.00024673,2]
[385319212,1757772652311,-500.0,0.00024673,2]
[385319213,1757772652321,-500.0,0.00024673,2]
[385319214,1757772652331,-500.0,0.00024673,2]
[385319215,1757772652341,-168.0,0.00024688,2]
[385319216,1757772652351,-151.0,0.000247,10]
[385319217,1757772652360,-151.0,0.000247,7]
[385319218,1757772652370,-649.0,0.000247,2]
[385319219,1757772652380,-610.64690538,0.00024731,7]
[385319220,1757772652390,-1000.0,0.00024739,2]
[385319221,1757772652399,-1000.0,0.00024739,2]
[385319222,1757772652408,-1000.0,0.00024739,2]
[385319223,1757772652417,-1000.0,0.00024739,2]
[385319224,1757772652427,-1000.0,0.00024739,2]
[385319225,1757772652436,-1000.0,0.00024739,2]
[385319226,1757772652447,-1000.0,0.00024739,2]
[385319227,1757772652456,-1000.0,0.00024739,2]
[385319228,1757772652465,-1000.0,0.00024739,2]
[385319229,1757772652474,-1000.0,0.00024739,2]
[385319230,1757772652484,-1000.0,0.00024739,2]
[385319231,1757772652493,-225.7,0.00024739,2]
[385319232,1757772652502,-200.0,0.0002479,2]
[385319233,1757772652512,-2000.0,0.00024798,2]
[385319234,1757772652521,-277.0,0.000248,2]
[385319235,1757772652530,-279.0,0.000248,2]
[385319236,1757772652540,-3000.0,0.000248,2]
[385319237,1757772652549,-151.0,0.000248,5]
[385319238,1757772652558,-151.0,0.000248,8]
[385319239,1757772652568,-151.0,0.000248,6]
[385319240,1757772652577,-151.0,0.000248,9]
[385319241,1757772652586,-151.0,0.000248,5]
[385319242,1757772652596,-3000.0,0.0002481,2]
[385319243,1757772652605,-3000.0,0.0002482,2]
[385319244,1757772652614,-3000.0,0.0002483,2]
[385319245,1757772652623,-168.0,0.00024835,2]
[385319246,1757772652632,-3000.0,0.0002484,2]
[385319247,1757772652642,-3000.0,0.0002485,2]
[385319248,1757772652651,-168.0,0.00024856,2]
[385319249,1757772652661,-168.0,0.00024859,2]
[385319250,1757772652671,-3000.0,0.0002486,2]
[385319251,1757772652681,-5937.16886,0.0002487,2]
[385319252,1757772652691,-500.0,0.00024873,2]
[385319253,1757772652701,-518.68054904,0.00024873,2]
[385319254,1757772652711,-500.0,0.00024873,2]
[385319255,1757772652721,-500.0,0.00024873,2]
[385319256,1757772652731,-500.0,0.00024873,2]
[385319257,1757772652741,-500.0,0.00024873,2]
[385319258,1757772652750,-290.34991965,0.00024873,2]
[385319259,1757772652759,-500.0,0.00024873,2]
[385319260,1757772652768,-500.0,0.00024873,2]
[385319261,1757772652777,-505.19897323,0.00024873,2]
[385319262,1757772652787,-500.41346576,0.00024873,2]
[385319263,1757772652796,-500.0,0.00024873,2]
[385319264,1757772652806,-500.0,0.00024873,2]
[385319265,1757772652815,-168.0,0.00024878,2]
[385319266,1757772652824,-2094.09711287,0.00024896,2]
[385319267,1757772652834,-8154.60282165,0.00024899,2]
[385319268,1757772652843,-203.78244677,0.00024899,2]
[385319269,1757772652853,-159.34083979,0.000249,2]
[385319270,1757772652862,-1613.0,0.000249,7]
[385319271,1757772652877,-556.14,0.000249,7]
[385319272,1757772652887,-31954.7,0.000249,7]
[385319273,1757772652897,-500.0,0.000249,9]
[385319274,1757772652907,-151.0,0.000249,7]
[385319275,1757772652917,-151.0,0.000249,5]
[385319276,1757772652926,-500.0,0.000249,9]
[385319277,1757772652936,-151.0,0.000249,7]
[385319278,1757772652947,-115217.14355494,0.000249,2]
[385319279,1757772653139,-687.29863879,0.000249,2]
[385319280,1757772653364,-532.49531859,0.00024657,3]
[385319281,1757772653374,-480.0,0.00024657,3]
[385319282,1757772653383,-27067.50468149,0.000249,2]
[385319283,1757772653403,-89739.63081054,0.000249,2]
[385319284,1757772653441,-35351.08433924,0.000249,2]
[385319285,1757772653450,-664.952,0.000249,2]
[385319286,1757772653460,-500.0,0.00024902,3]
[385319287,1757772653470,-168.0,0.00024923,2]
[385319288,1757772653480,-6000.0,0.00024927,2]
[385319289,1757772653489,-157.0,0.0002493,2]
[385319290,1757772653500,-604.77017753,0.0002493,2]
[385319291,1757772653509,-500.0,0.0002493,2]
[385319292,1757772653520,-157.0,0.0002493,2]
[385319293,1757772653530,-500.0,0.0002493,2]
[385319294,1757772653539,-157.0,0.0002493,2]
[385319295,1757772653549,-500.0,0.0002493,2]
[385319296,1757772653558,-619.67234433,0.0002493,2]
[385319297,1757772653568,-500.0,0.0002493,2]
[385319298,1757772653577,-500.0,0.0002493,2]
[385319299,1757772653586,-500.0,0.0002493,2]
[385319300,1757772653596,-500.0,0.0002493,2]
[385319301,1757772653605,-157.0,0.0002493,2]
[385319302,1757772653615,-157.0,0.00024931,3]
[385319303,1757772653624,-157.0,0.00024931,3]
[385319304,1757772653635,-183.6368369,0.00024931,3]
[385319305,1757772653644,-500.0,0.00024931,3]
[385319306,1757772653653,-500.0,0.00024931,3]
[385319307,1757772653663,-160.0,0.00024931,7]
[385319308,1757772653672,-480.0,0.00024931,3]
[385319309,1757772653682,-480.0,0.00024931,3]
[385319310,1757772653692,-546.41475511,0.00024931,3]
[385319311,1757772653702,-480.0,0.00024931,3]
[385319312,1757772653711,-583.04823646,0.00024931,3]
[385319313,1757772653720,-480.0,0.00024931,3]
[385319314,1757772653730,-480.0,0.00024931,3]
[385319315,1757772653740,-480.0,0.00024931,3]
[385319316,1757772653749,-480.0,0.00024931,3]
[385319317,1757772653759,-480.0,0.00024931,3]
[385319318,1757772653768,-480.0,0.00024931,3]
[385319319,1757772653778,-480.0,0.00024931,3]
[385319320,1757772653787,-480.0,0.00024931,3]
[385319321,1757772653797,-480.0,0.00024931,3]
[385319322,1757772653806,-480.0,0.00024931,3]
[385319323,1757772653815,-482.35707183,0.00024931,3]
[385319324,1757772653825,-480.0,0.00024931,3]
[385319325,1757772653834,-480.0,0.00024931,3]
[385319326,1757772653844,-188.71539868,0.00024931,3]
[385319327,1757772653854,-480.0,0.00024931,3]
[385319328,1757772653863,-480.0,0.00024931,3]
[385319329,1757772653876,-480.0,0.00024931,3]
[385319330,1757772653886,-480.0,0.00024931,3]
[385319331,1757772653896,-480.0,0.00024931,3]
[385319332,1757772653905,-480.0,0.00024931,3]
[385319333,1757772653915,-480.0,0.00024931,3]
[385319334,1757772653925,-480.0,0.00024931,3]
[385319335,1757772653934,-480.0,0.00024931,3]
[385319336,1757772653944,-480.0,0.00024931,3]
[385319337,1757772653953,-480.0,0.00024931,3]
[385319338,1757772653963,-480.0,0.00024931,3]
[385319339,1757772653973,-480.0,0.00024931,3]
[385319340,1757772653983,-480.0,0.00024931,3]
[385319341,1757772653992,-480.0,0.00024931,3]
[385319342,1757772654001,-480.0,0.00024931,3]
[385319343,1757772654010,-655.19,0.00024931,3]
[385319344,1757772654019,-713.36,0.00024931,3]
[385319345,1757772654030,-480.0,0.00024931,3]
[385319346,1757772654039,-480.0,0.00024931,3]
[385319347,1757772654049,-480.0,0.00024931,3]
[385319348,1757772654058,-480.0,0.00024931,3]
[385319349,1757772654068,-295.64413619,0.00024931,3]
[385319350,1757772654077,-915.0,0.00024931,3]
[385319351,1757772654087,-480.0,0.00024931,3]
[385319352,1757772654096,-480.0,0.00024931,3]
[385319353,1757772654105,-480.0,0.00024931,3]
[385319354,1757772654115,-585.7,0.00024931,3]
[385319355,1757772654124,-480.0,0.00024931,3]
[385319356,1757772654133,-480.0,0.00024931,3]
[385319357,1757772654143,-480.0,0.00024931,3]
[385319358,1757772654152,-480.0,0.00024931,3]
[385319359,1757772654162,-480.0,0.00024931,3]
[385319360,1757772654171,-480.0,0.00024931,3]
[385319361,1757772654180,-480.0,0.00024931,3]
[385319362,1757772654189,-480.0,0.00024931,3]
[385319363,1757772654199,-480.0,0.00024931,3]
[385319364,1757772654208,-480.0,0.00024931,3]
[385319365,1757772654217,-480.0,0.00024931,3]
[385319366,1757772654227,-480.0,0.00024931,3]
[385319367,1757772654236,-480.0,0.00024931,3]
[385319368,1757772654245,-480.0,0.00024931,3]
[385319369,1757772654254,-480.0,0.00024931,3]
[385319370,1757772654264,-480.0,0.00024931,3]
[385319371,1757772654273,-480.0,0.00024931,3]
[385319372,1757772654282,-1095.71,0.00024931,3]
[385319373,1757772654292,-480.0,0.00024931,3]
[385319374,1757772654301,-266.06025127,0.00024931,3]
[385319375,1757772654310,-480.0,0.00024931,3]
[385319376,1757772654319,-480.0,0.00024931,3]
[385319377,1757772654329,-480.0,0.00024931,3]
[385319378,1757772654338,-250.68273232,0.00024931,3]
[385319379,1757772654348,-480.0,0.00024931,3]
[385319380,1757772654357,-480.0,0.00024931,3]
[385319381,1757772654367,-480.0,0.00024931,3]
[385319382,1757772654376,-480.0,0.00024931,3]
[385319383,1757772654386,-480.0,0.00024931,3]
[385319384,1757772654396,-480.0,0.00024931,3]
[385319385,1757772654406,-480.0,0.00024931,3]
[385319386,1757772654417,-480.0,0.00024931,3]
[385319387,1757772654427,-480.0,0.00024931,3]
[385319388,1757772654437,-480.0,0.00024931,3]
[385319389,1757772654446,-480.0,0.00024931,3]
[385319390,1757772654455,-480.0,0.00024931,3]
[385319391,1757772654465,-425.9091137,0.00024931,3]
[385319392,1757772654474,-480.0,0.00024931,3]
[385319393,1757772654483,-480.0,0.00024931,3]
[385319394,1757772654493,-480.0,0.00024931,3]
[385319395,1757772654502,-480.0,0.00024931,3]
[385319396,1757772654511,-480.0,0.00024931,3]
[385319397,1757772654521,-480.0,0.00024931,3]
[385319398,1757772654530,-480.0,0.00024931,3]
[385319399,1757772654539,-480.0,0.00024931,3]
[385319400,1757772654548,-480.0,0.00024931,3]
[385319401,1757772654558,-480.0,0.00024931,3]
[385319402,1757772654568,-201.3412741,0.00024931,3]
[385319403,1757772654577,-480.0,0.00024931,3]
[385319404,1757772654586,-480.0,0.00024931,3]
[385319405,1757772654596,-480.0,0.00024931,3]
[385319406,1757772654605,-894.84,0.00024931,3]
[385319407,1757772654614,-480.0,0.00024931,3]
[385319408,1757772654623,-480.0,0.00024931,3]
[385319409,1757772654633,-480.0,0.00024931,3]
[385319410,1757772654644,-492.3,0.00024931,3]
[385319411,1757772654654,-480.0,0.00024931,3]
[385319412,1757772654664,-595.46,0.00024931,3]
[385319413,1757772654673,-480.0,0.00024931,3]
[385319414,1757772654683,-464.56787138,0.00024931,3]
[385319415,1757772654692,-480.0,0.00024931,3]